[Event "Junior-SM 2025"]
[Site "Uppsala, Sweden"]
[Date "2025.07.04"]
[Round "7.4"]
[White "Nilsson, Oliver"]
[Black "Valcu, Lavinia"]
[Result "0-1"]
[TimeControl "90 min for 40 move + 30 min with an increment of 30 sec starting move 1"]
[WhiteFideId "1730177"]
[BlackFideId "1752197"]
[WhiteElo "2129"]
[BlackElo "2127"]

1. e4 {[%clk 01:30:57]} {[%emt 00:00:02]} e5 {[%clk 01:29:28]} {[%emt
00:01:32]} 2. Nf3 {[%clk 01:31:22]} {[%emt 00:00:05]} Nc6 {[%clk 01:29:44]}
{[%emt 00:00:14]} 3. Bc4 {[%clk 01:31:48]} {[%emt 00:00:04]} Nf6 {[%clk
01:30:07]} {[%emt 00:00:08]} 4. d4 {[%clk 01:32:13]} {[%emt 00:00:04]} exd4
{[%clk 01:30:17]} {[%emt 00:00:20]} 5. e5 {[%clk 01:32:39]} {[%emt 00:00:05]}
d5 {[%clk 01:29:41]} {[%emt 00:01:05]} 6. Bb5 {[%clk 01:33:04]} {[%emt
00:00:05]} Nd7 {[%clk 01:29:06]} {[%emt 00:01:05]} 7. O-O {[%clk 01:33:04]}
{[%emt 00:00:31]} Be7 {[%clk 01:25:48]} {[%emt 00:03:47]} 8. c3 {[%clk
01:31:33]} {[%emt 00:02:00]} d3 {[%clk 01:25:53]} {[%emt 00:00:26]} 9. Re1
{[%clk 01:29:45]} {[%emt 00:02:19]} a6 {[%clk 01:26:13]} {[%emt 00:00:10]} 10.
Bxd3 {[%clk 01:18:36]} {[%emt 00:11:39]} Nc5 {[%clk 01:26:29]} {[%emt
00:00:13]} 11. h3 {[%clk 01:18:58]} {[%emt 00:00:07]} Nxd3 {[%clk 01:25:04]}
{[%emt 00:01:56]} 12. Qxd3 {[%clk 01:19:03]} {[%emt 00:00:25]} Be6 {[%clk
01:15:01]} {[%emt 00:10:33]} 13. Be3 {[%clk 01:01:32]} {[%emt 00:18:00]} Qd7
{[%clk 00:53:24]} {[%emt 00:22:08]} 14. Qd1 {[%clk 00:56:10]} {[%emt 00:05:52]}
O-O {[%clk 00:48:25]} {[%emt 00:05:29]} 15. Bg5 {[%clk 00:44:29]} {[%emt
00:12:10]} Bc5 {[%clk 00:37:08]} {[%emt 00:11:48]} 16. Nbd2 {[%clk 00:36:22]}
{[%emt 00:08:37]} h6 {[%clk 00:25:20]} {[%emt 00:12:18]} 17. Nb3 {[%clk
00:35:27]} {[%emt 00:01:24]} Bxf2+ {[%clk 00:21:10]} {[%emt 00:04:41]} 18. Kxf2
{[%clk 00:35:49]} {[%emt 00:00:07]} hxg5 {[%clk 00:21:37]} {[%emt 00:00:04]} 19.
Kg1 {[%clk 00:26:33]} {[%emt 00:09:45]} Qe7 {[%clk 00:18:28]} {[%emt 00:03:40]}
20. Nfd4 {[%clk 00:17:45]} {[%emt 00:09:17]} Nxd4 {[%clk 00:16:45]} {[%emt
00:02:14]} 21. cxd4 {[%clk 00:18:10]} {[%emt 00:00:05]} a5 {[%clk 00:14:09]}
{[%emt 00:03:06]} 22. a4 {[%clk 00:16:20]} {[%emt 00:02:20]} b6 {[%clk
00:13:14]} {[%emt 00:01:25]} 23. Qc2 {[%clk 00:12:33]} {[%emt 00:04:17]} Rfc8
{[%clk 00:08:05]} {[%emt 00:05:39]} 24. Qc6 {[%clk 00:12:08]} {[%emt 00:00:55]}
Qb4 {[%clk 00:06:55]} {[%emt 00:01:40]} 25. Re3 {[%clk 00:10:51]} {[%emt
00:01:47]} Qc4 {[%clk 00:06:35]} {[%emt 00:00:50]} 26. Rc3 {[%clk 00:10:24]}
{[%emt 00:00:57]} Qxc6 {[%clk 00:04:58]} {[%emt 00:02:07]} 27. Rxc6 {[%clk
00:10:53]} {[%emt 00:00:01]} Bd7 {[%clk 00:05:11]} {[%emt 00:00:18]} 28. Rc3
{[%clk 00:08:50]} {[%emt 00:02:33]} f6 {[%clk 00:05:03]} {[%emt 00:00:37]} 29.
Re3 {[%clk 00:07:48]} {[%emt 00:01:32]} Re8 {[%clk 00:04:36]} {[%emt 00:00:57]}
30. Kf2 {[%clk 00:04:07]} {[%emt 00:04:12]} fxe5 {[%clk 00:03:58]} {[%emt
00:01:08]} 31. dxe5 {[%clk 00:04:30]} {[%emt 00:00:06]} c5 {[%clk 00:04:17]}
{[%emt 00:00:11]} 32. Nd2 {[%clk 00:04:18]} {[%emt 00:00:41]} g4 {[%clk
00:03:50]} {[%emt 00:00:58]} 33. h4 {[%clk 00:04:30]} {[%emt 00:00:18]} Re7
{[%clk 00:03:15]} {[%emt 00:01:04]} 34. b3 {[%clk 00:04:07]} {[%emt 00:00:53]}
Rae8 {[%clk 00:03:21]} {[%emt 00:00:25]} 35. Rae1 {[%clk 00:03:41]} {[%emt
00:00:56]} Bf5 {[%clk 00:03:37]} {[%emt 00:00:15]} 36. R3e2 {[%clk 00:02:13]}
{[%emt 00:01:57]} d4 {[%clk 00:02:57]} {[%emt 00:01:10]} 37. Nc4 {[%clk
00:01:54]} {[%emt 00:00:50]} Bd3 {[%clk 00:03:12]} {[%emt 00:00:14]} 38. Nd6
{[%clk 00:01:48]} {[%emt 00:00:36]} Bxe2 {[%clk 00:03:33]} {[%emt 00:00:09]} 39.
Rxe2 {[%clk 00:01:55]} {[%emt 00:00:23]} Rf8+ {[%clk 00:02:55]} {[%emt
00:01:08]} 40. Ke1 {[%clk 00:01:22]} {[%emt 00:01:02]} g3 {[%clk 00:02:08]}
{[%emt 00:01:17]} 41. Nc4 {[%clk 00:24:58]} {[%emt 00:06:54]} Re6 {[%clk
00:31:27]} {[%emt 00:01:12]} 42. Kd2 {[%clk 00:22:57]} {[%emt 00:02:31]} Rf4
{[%clk 00:31:04]} {[%emt 00:00:53]} 43. Kd3 {[%clk 00:22:45]} {[%emt 00:00:42]}
Rxh4 {[%clk 00:31:07]} {[%emt 00:00:27]} 44. Re4 {[%clk 00:23:00]} {[%emt
00:00:14]} Rh2 {[%clk 00:30:57]} {[%emt 00:00:40]} 45. Rf4 {[%clk 00:23:20]}
{[%emt 00:00:10]} Rxg2 {[%clk 00:30:20]} {[%emt 00:01:07]} 46. Ke4 {[%clk
00:23:42]} {[%emt 00:00:08]} Rg6 {[%clk 00:29:10]} {[%emt 00:01:40]} 47. Kd5
{[%clk 00:22:05]} {[%emt 00:02:07]} Rf2 {[%clk 00:28:42]} {[%emt 00:00:57]} 48.
e6 {[%clk 00:21:23]} {[%emt 00:01:12]} Rxf4 {[%clk 00:27:05]} {[%emt 00:02:06]}
49. e7 {[%clk 00:21:47]} {[%emt 00:00:06]} Kf7 {[%clk 00:27:26]} {[%emt
00:00:10]} 50. Ne5+ {[%clk 00:22:09]} {[%emt 00:00:08]} Ke8 {[%clk 00:27:53]}
{[%emt 00:00:03]} 51. Nxg6 {[%clk 00:22:21]} {[%emt 00:00:18]} Rf6 {[%clk
00:27:58]} {[%emt 00:00:26]} 0-1

[Event "Junior-SM 2025"]
[Site "Uppsala, Sweden"]
[Date "2025.07.04"]
[Round "7.5"]
[White "Frank, Anton"]
[Black "Grahn, Vidar"]
[Result "0-1"]
[TimeControl "90 min for 40 move + 30 min with an increment of 30 sec starting move 1"]
[WhiteTitle "CM"]
[BlackTitle "FM"]
[WhiteFideId "1752383"]
[BlackFideId "1744780"]
[WhiteElo "2183"]
[BlackElo "2239"]

1. e4 {[%clk 01:30:58]} {[%emt 00:00:01]} e5 {[%clk 01:30:55]} {[%emt
00:00:06]} 2. Nf3 {[%clk 01:31:21]} {[%emt 00:00:06]} Nc6 {[%clk 01:31:21]}
{[%emt 00:00:04]} 3. Bc4 {[%clk 01:31:45]} {[%emt 00:00:06]} Nf6 {[%clk
01:31:46]} {[%emt 00:00:05]} 4. d3 {[%clk 01:32:10]} {[%emt 00:00:05]} Be7
{[%clk 01:31:55]} {[%emt 00:00:22]} 5. O-O {[%clk 01:32:30]} {[%emt 00:00:09]}
O-O {[%clk 01:32:21]} {[%emt 00:00:04]} 6. Re1 {[%clk 01:32:35]} {[%emt
00:00:25]} d6 {[%clk 01:32:07]} {[%emt 00:00:44]} 7. a4 {[%clk 01:32:58]}
{[%emt 00:00:07]} Be6 {[%clk 01:31:28]} {[%emt 00:01:09]} 8. Bxe6 {[%clk
01:33:04]} {[%emt 00:00:24]} fxe6 {[%clk 01:31:41]} {[%emt 00:00:18]} 9. c3
{[%clk 01:32:27]} {[%emt 00:01:07]} Qe8 {[%clk 01:26:19]} {[%emt 00:05:52]} 10.
Qb3 {[%emt 00:19:33]} Nd8 11. d4 {[%clk 01:14:29]} Qg6 {[%clk 01:24:06]} {[%emt
00:02:36]} 12. dxe5 {[%clk 00:58:40]} {[%emt 00:16:20]} Nxe4 {[%clk 01:19:02]}
{[%emt 00:05:35]} 13. Nbd2 {[%clk 00:57:24]} {[%emt 00:01:46]} Nc5 {[%clk
01:15:52]} {[%emt 00:03:40]} 14. Qd1 {[%clk 00:53:56]} {[%emt 00:03:57]} Nd3
{[%clk 01:07:16]} {[%emt 00:09:07]} 15. Re3 {[%clk 00:53:15]} {[%emt 00:01:10]}
Nf4 {[%clk 01:06:31]} {[%emt 00:01:16]} 16. Qf1 {[%clk 00:52:54]} {[%emt
00:00:51]} d5 {[%clk 00:57:54]} {[%emt 00:09:07]} 17. Nb3 {[%clk 00:51:11]}
{[%emt 00:02:13]} c5 {[%clk 00:57:08]} {[%emt 00:01:16]} 18. Ne1 {[%clk
00:49:04]} {[%emt 00:02:36]} Nc6 {[%clk 00:44:30]} {[%emt 00:13:09]} 19. Rg3
{[%clk 00:35:36]} {[%emt 00:13:58]} Qh5 {[%clk 00:44:08]} {[%emt 00:00:51]} 20.
Bxf4 {[%clk 00:35:11]} {[%emt 00:00:56]} Rxf4 {[%clk 00:44:33]} {[%emt
00:00:05]} 21. Nd3 {[%clk 00:35:31]} {[%emt 00:00:10]} Rh4 {[%clk 00:44:12]}
{[%emt 00:00:51]} 22. Nbxc5 {[%clk 00:32:32]} {[%emt 00:03:29]} Rxh2 {[%clk
00:43:03]} {[%emt 00:01:39]} 23. Rh3 {[%clk 00:32:56]} {[%emt 00:00:06]} Rxh3
{[%clk 00:43:11]} {[%emt 00:00:22]} 24. gxh3 {[%clk 00:33:16]} {[%emt
00:00:09]} Bxc5 {[%clk 00:42:26]} {[%emt 00:01:15]} 25. Nxc5 {[%clk 00:33:38]}
{[%emt 00:00:08]} Nxe5 {[%clk 00:42:49]} {[%emt 00:00:08]} 26. Qg2 {[%clk
00:28:05]} {[%emt 00:06:03]} Nf3+ {[%clk 00:41:04]} {[%emt 00:02:14]} 27. Kh1
{[%clk 00:28:00]} {[%emt 00:00:36]} Ng5 {[%clk 00:40:59]} {[%emt 00:00:36]} 28.
Qg4 {[%clk 00:13:19]} {[%emt 00:15:10]} Qxh3+ {[%clk 00:39:12]} {[%emt
00:02:17]} 29. Qxh3 {[%clk 00:13:48]} {[%emt 00:00:01]} Nxh3 {[%clk 00:39:35]}
{[%emt 00:00:07]} 30. Nxe6 {[%clk 00:13:58]} {[%emt 00:00:20]} Nxf2+ {[%clk
00:39:30]} {[%emt 00:00:34]} 31. Kg2 {[%clk 00:14:28]} Nd3 {[%clk 00:38:40]}
{[%emt 00:01:18]} 32. Rd1 {[%clk 00:13:26]} {[%emt 00:01:33]} Nxb2 {[%clk
00:36:58]} {[%emt 00:02:12]} 33. Rxd5 {[%clk 00:13:13]} {[%emt 00:00:44]} Re8
{[%clk 00:35:30]} {[%emt 00:01:56]} 34. Nc7 {[%clk 00:11:43]} {[%emt 00:02:02]}
Re7 {[%clk 00:32:37]} {[%emt 00:03:22]} 35. Rd8+ {[%clk 00:11:58]} {[%emt
00:00:16]} Kf7 {[%clk 00:33:03]} {[%emt 00:00:04]} 36. Nd5 {[%clk 00:11:54]}
{[%emt 00:00:34]} Re2+ {[%clk 00:27:25]} {[%emt 00:06:07]} 37. Kf3 {[%clk
00:12:13]} {[%emt 00:00:11]} Rc2 {[%clk 00:24:26]} {[%emt 00:03:29]} 38. Rb8
{[%clk 00:10:49]} {[%emt 00:01:54]} Nxa4 {[%clk 00:21:19]} {[%emt 00:03:37]} 39.
Rxb7+ {[%clk 00:10:56]} {[%emt 00:00:24]} Kg6 {[%clk 00:21:21]} {[%emt
00:00:27]} 40. Rxa7 {[%clk 00:07:47]} {[%emt 00:03:39]} Nxc3 {[%clk 00:21:33]}
{[%emt 00:00:19]} 41. Nf4+ {[%clk 00:02:35]} {[%emt 00:05:41]} Kh6 {[%clk
00:19:51]} {[%emt 00:02:12]} 42. Ne6 {[%clk 00:02:14]} {[%emt 00:00:51]} Nb5
{[%clk 00:18:53]} {[%emt 00:01:28]} 43. Rb7 {[%clk 00:24:06]} {[%emt 00:08:38]}
Rc3+ {[%clk 00:45:51]} {[%emt 00:03:33]} 44. Kf4 {[%clk 00:19:52]} {[%emt
00:04:43]} Rc4+ {[%clk 00:45:35]} {[%emt 00:00:46]} 45. Ke5 {[%clk 00:10:26]}
{[%emt 00:09:56]} Re4+ {[%clk 00:45:47]} {[%emt 00:00:19]} 46. Kd5 {[%clk
00:10:40]} {[%emt 00:00:16]} Nc3+ {[%clk 00:45:53]} {[%emt 00:00:24]} 47. Kd6
{[%clk 00:11:09]} Rg4 {[%clk 00:44:41]} {[%emt 00:01:41]} 48. Ke5 {[%clk
00:06:46]} {[%emt 00:04:54]} Rg3 {[%clk 00:39:35]} {[%emt 00:05:35]} 49. Rb2
{[%clk 00:02:51]} {[%emt 00:04:25]} Re3+ {[%clk 00:36:55]} {[%emt 00:03:10]} 50.
Kf5 {[%clk 00:03:13]} {[%emt 00:00:08]} g6+ {[%clk 00:36:09]} {[%emt 00:01:16]}
51. Kf6 {[%clk 00:03:34]} {[%emt 00:00:09]} Re2 {[%clk 00:34:14]} {[%emt
00:02:26]} 52. Rb7 {[%clk 00:02:34]} {[%emt 00:01:30]} Ne4+ {[%clk 00:34:30]}
{[%emt 00:00:10]} 53. Ke7 {[%clk 00:01:29]} {[%emt 00:01:38]} Nc5 {[%clk
00:34:46]} {[%emt 00:00:13]} 54. Rb1 {[%clk 00:01:13]} {[%emt 00:00:48]} Nxe6
{[%clk 00:34:57]} {[%emt 00:00:18]} 55. Kf6 {[%clk 00:01:36]} {[%emt 00:00:07]}
Nf4 {[%clk 00:35:01]} {[%emt 00:00:24]} 56. Rg1 {[%clk 00:01:25]} {[%emt
00:00:42]} Nh5+ {[%clk 00:35:22]} {[%emt 00:00:09]} 57. Kf7 {[%clk 00:01:55]}
{[%emt 00:00:01]} Rf2+ {[%clk 00:35:44]} {[%emt 00:00:09]} 58. Kg8 {[%clk
00:02:17]} {[%emt 00:00:07]} g5 {[%clk 00:35:44]} {[%emt 00:00:30]} 59. Ra1
{[%clk 00:02:33]} {[%emt 00:00:14]} Kg6 {[%clk 00:35:08]} {[%emt 00:01:07]} 60.
Ra7 {[%clk 00:02:47]} {[%emt 00:00:16]} Re2 {[%clk 00:34:41]} {[%emt 00:00:56]}
61. Kf8 {[%clk 00:02:46]} {[%emt 00:00:32]} g4 {[%clk 00:34:34]} {[%emt
00:00:37]} 0-1

[Event "Junior-SM 2025"]
[Site "Uppsala, Sweden"]
[Date "2025.07.03"]
[Round "6.4"]
[White "Religa, Marek"]
[Black "Frank, Anton"]
[Result "0-1"]
[TimeControl "90 min for 40 move + 30 min with an increment of 30 sec starting move 1"]
[BlackTitle "CM"]
[WhiteFideId "1750208"]
[BlackFideId "1752383"]
[WhiteElo "2228"]
[BlackElo "2183"]

1. g3 {[%clk 01:30:59]} d5 {[%clk 01:30:38]} {[%emt 00:00:22]} 2. Bg2 {[%emt
00:01:51]} c5 {[%clk 01:30:02]} {[%emt 00:00:51]} 3. d3 {[%clk 01:31:54]}
{[%emt 00:00:03]} Nf6 {[%clk 01:29:28]} {[%emt 00:01:04]} 4. f4 {[%clk
01:31:56]} {[%emt 00:00:28]} g6 {[%clk 01:28:36]} {[%emt 00:01:21]} 5. Nf3
{[%clk 01:32:25]} {[%emt 00:00:02]} Bg7 {[%clk 01:28:50]} {[%emt 00:00:16]} 6.
O-O {[%clk 01:32:53]} {[%emt 00:00:02]} O-O {[%clk 01:28:10]} {[%emt 00:01:10]}
7. a3 {[%clk 01:33:12]} {[%emt 00:00:12]} Nc6 {[%clk 01:26:04]} {[%emt
00:02:35]} 8. a4 {[%clk 01:33:40]} {[%emt 00:00:02]} Re8 {[%clk 01:22:34]}
{[%emt 00:03:59]} 9. Nc3 {[%clk 01:32:55]} {[%emt 00:01:15]} d4 {[%clk
01:18:28]} {[%emt 00:04:36]} 10. Ne4 {[%clk 01:33:24]} {[%emt 00:00:02]} Nxe4
{[%clk 01:10:21]} {[%emt 00:08:36]} 11. dxe4 {[%clk 01:32:59]} {[%emt
00:00:56]} e5 {[%clk 01:09:25]} {[%emt 00:01:26]} 12. f5 {[%clk 01:33:01]}
{[%emt 00:00:28]} gxf5 {[%clk 01:04:24]} {[%emt 00:05:31]} 13. e3 {[%clk
01:33:29]} {[%emt 00:00:02]} fxe4 {[%clk 00:48:43]} {[%emt 00:16:09]} 14. Nh4
{[%clk 01:33:58]} {[%emt 00:00:03]} Ne7 {[%clk 00:47:38]} {[%emt 00:01:35]} 15.
Bxe4 {[%clk 01:32:29]} {[%emt 00:01:58]} f5 {[%clk 00:47:05]} {[%emt 00:01:03]}
16. Nxf5 {[%clk 01:30:10]} {[%emt 00:02:50]} Bxf5 {[%clk 00:42:40]} {[%emt
00:04:55]} 17. Bxf5 {[%clk 01:30:38]} {[%emt 00:00:02]} Nxf5 {[%clk 00:42:47]}
{[%emt 00:00:23]} 18. Rxf5 {[%clk 01:31:07]} {[%emt 00:00:01]} Rf8 {[%clk
00:37:56]} {[%emt 00:05:21]} 19. Rxf8+ {[%clk 01:29:21]} {[%emt 00:02:16]} Qxf8
{[%clk 00:37:25]} {[%emt 00:01:00]} 20. e4 {[%clk 01:29:25]} {[%emt 00:00:26]}
Qf7 {[%clk 00:36:09]} {[%emt 00:01:46]} 21. Qe2 {[%clk 01:28:13]} {[%emt
00:01:43]} Rf8 {[%clk 00:33:59]} {[%emt 00:02:39]} 22. Bd2 {[%clk 01:23:39]}
{[%emt 00:05:04]} Qe6 {[%clk 00:29:09]} {[%emt 00:05:20]} 23. g4 {[%clk
00:59:40]} {[%emt 00:24:30]} c4 {[%clk 00:24:08]} {[%emt 00:05:31]} 24. h3
{[%clk 00:52:31]} {[%emt 00:07:38]} Qc6 {[%clk 00:22:31]} {[%emt 00:02:07]} 25.
Kg2 {[%clk 00:47:20]} {[%emt 00:05:42]} Rf7 {[%clk 00:19:43]} {[%emt 00:03:17]}
26. Bb4 {[%clk 00:40:51]} {[%emt 00:07:00]} Bh6 {[%clk 00:16:54]} {[%emt
00:03:18]} 27. Rf1 {[%clk 00:39:12]} {[%emt 00:02:09]} Bf4 {[%clk 00:14:11]}
{[%emt 00:03:14]} 28. Rf3 {[%clk 00:38:53]} {[%emt 00:00:48]} Rc7 {[%clk
00:11:27]} {[%emt 00:03:14]} 29. Bd2 {[%clk 00:37:24]} {[%emt 00:02:00]} Rf7
{[%clk 00:04:02]} {[%emt 00:07:55]} 30. Bxf4 {[%clk 00:36:33]} {[%emt
00:01:20]} Rxf4 {[%clk 00:04:19]} {[%emt 00:00:13]} 31. Rxf4 {[%clk 00:36:43]}
{[%emt 00:00:20]} exf4 {[%clk 00:04:49]} {[%emt 00:00:01]} 32. a5 {[%clk
00:30:04]} {[%emt 00:07:09]} Qb5 {[%clk 00:04:49]} {[%emt 00:00:30]} 33. Kf3
{[%clk 00:30:16]} {[%emt 00:00:18]} h6 {[%clk 00:02:08]} {[%emt 00:03:10]} 34.
e5 {[%clk 00:23:51]} {[%emt 00:06:56]} d3 {[%clk 00:02:18]} {[%emt 00:00:20]}
35. cxd3 {[%clk 00:24:01]} {[%emt 00:00:20]} cxd3 {[%clk 00:02:47]} {[%emt
00:00:01]} 36. Qd2 {[%clk 00:24:06]} {[%emt 00:00:25]} Qc4 {[%clk 00:01:44]}
{[%emt 00:01:33]} 37. Qc3 {[%clk 00:13:39]} {[%emt 00:10:57]} Qxc3 {[%clk
00:01:17]} {[%emt 00:00:56]} 38. bxc3 {[%clk 00:14:01]} {[%emt 00:00:08]} Kf7
{[%clk 00:01:42]} {[%emt 00:00:06]} 39. h4 {[%clk 00:05:46]} {[%emt 00:08:45]}
Ke6 {[%clk 00:01:56]} {[%emt 00:00:15]} 40. a6 {[%clk 00:03:35]} {[%emt
00:02:41]} b6 {[%clk 00:01:36]} {[%emt 00:00:50]} 41. Kf2 {[%clk 00:28:19]}
{[%emt 00:05:46]} Kxe5 {[%clk 00:31:33]} {[%emt 00:00:34]} 42. Kf3 {[%clk
00:28:48]} Kf6 {[%clk 00:30:57]} {[%emt 00:01:04]} 43. Kf2 {[%clk 00:27:43]}
{[%emt 00:01:36]} b5 {[%clk 00:30:56]} {[%emt 00:00:31]} 44. Kf3 {[%clk
00:28:12]} Ke5 {[%clk 00:31:15]} {[%emt 00:00:11]} 45. Kf2 {[%clk 00:28:41]}
Ke4 {[%clk 00:31:07]} {[%emt 00:00:39]} 46. h5 {[%clk 00:28:13]} {[%emt
00:00:59]} Ke5 {[%clk 00:30:45]} {[%emt 00:00:51]} 47. Kf3 {[%clk 00:28:41]}
{[%emt 00:00:02]} Kf6 {[%clk 00:31:03]} {[%emt 00:00:12]} 48. c4 {[%clk
00:29:11]} {[%emt 00:00:01]} bxc4 {[%clk 00:31:22]} {[%emt 00:00:11]} 49. g5+
{[%clk 00:29:40]} Kxg5 {[%clk 00:31:40]} {[%emt 00:00:12]} 50. Kf2 {[%clk
00:30:09]} c3 {[%clk 00:31:51]} {[%emt 00:00:19]} 51. Kf3 {[%clk 00:30:38]}
{[%emt 00:00:02]} c2 {[%clk 00:32:10]} {[%emt 00:00:11]} 52. Kf2 {[%clk
00:31:07]} d2 {[%clk 00:32:12]} {[%emt 00:00:29]} 53. Kf3 {[%clk 00:31:36]}
{[%emt 00:00:01]} d1=Q+ {[%clk 00:32:19]} {[%emt 00:00:23]} 54. Kf2 {[%clk
00:32:05]} {[%emt 00:00:01]} c1=Q {[%clk 00:32:15]} {[%emt 00:00:33]} 55. Kg2
{[%clk 00:32:31]} {[%emt 00:00:04]} Qf1+ {[%clk 00:32:26]} {[%emt 00:00:19]} 56.
Kh2 {[%clk 00:33:00]} {[%emt 00:00:01]} Qd2# {[%emt 00:00:11]} 0-1

[Event "Junior-SM 2025"]
[Site "Uppsala, Sweden"]
[Date "2025.07.03"]
[Round "6.5"]
[White "Grahn, Vidar"]
[Black "Nilsson, Oliver"]
[Result "1-0"]
[TimeControl "90 min for 40 move + 30 min with an increment of 30 sec starting move 1"]
[WhiteTitle "FM"]
[WhiteFideId "1744780"]
[BlackFideId "1730177"]
[WhiteElo "2239"]
[BlackElo "2129"]

1. d4 {[%clk 01:30:54]} {[%emt 00:00:06]} d5 {[%clk 01:30:10]} {[%emt
00:00:48]} 2. Nf3 {[%clk 01:30:46]} {[%emt 00:00:40]} Nf6 {[%clk 01:30:36]}
{[%emt 00:00:05]} 3. c4 {[%clk 01:31:06]} {[%emt 00:00:09]} c6 {[%clk
01:31:01]} {[%emt 00:00:06]} 4. Nc3 {[%clk 01:31:30]} {[%emt 00:00:06]} g6
{[%clk 01:31:07]} {[%emt 00:00:24]} 5. cxd5 {[%clk 01:31:55]} {[%emt 00:00:04]}
cxd5 {[%clk 01:31:33]} {[%emt 00:00:04]} 6. Bf4 {[%clk 01:32:20]} {[%emt
00:00:05]} Nc6 {[%clk 01:31:59]} {[%emt 00:00:04]} 7. e3 {[%clk 01:32:46]}
{[%emt 00:00:05]} Nh5 {[%clk 01:32:22]} {[%emt 00:00:07]} 8. Bg5 {[%clk
01:33:11]} {[%emt 00:00:05]} h6 {[%clk 01:32:42]} {[%emt 00:00:10]} 9. Bh4
{[%clk 01:33:34]} {[%emt 00:00:06]} Bg7 {[%clk 01:33:04]} {[%emt 00:00:08]} 10.
Bb5 {[%clk 01:33:58]} {[%emt 00:00:06]} Qd6 {[%clk 01:25:53]} {[%emt 00:07:41]}
11. Rc1 {[%clk 01:29:04]} {[%emt 00:05:25]} O-O {[%clk 01:02:41]} {[%emt
00:23:41]} 12. O-O {[%clk 01:21:43]} {[%emt 00:07:51]} Be6 {[%clk 00:53:00]}
{[%emt 00:10:11]} 13. Bxc6 {[%clk 01:17:19]} {[%emt 00:04:55]} bxc6 {[%clk
00:53:14]} {[%emt 00:00:16]} 14. Na4 {[%clk 01:16:32]} {[%emt 00:01:17]} f5
{[%clk 00:45:40]} {[%emt 00:08:04]} 15. Bg3 {[%clk 00:38:44]} {[%emt 00:38:18]}
Nxg3 {[%clk 00:40:14]} {[%emt 00:05:56]} 16. hxg3 {[%clk 00:39:08]} {[%emt
00:00:06]} g5 {[%clk 00:38:15]} {[%emt 00:02:28]} 17. Qe2 {[%clk 00:31:40]}
{[%emt 00:07:58]} f4 {[%clk 00:26:44]} {[%emt 00:12:02]} 18. exf4 {[%clk
00:30:21]} {[%emt 00:01:48]} Bg4 {[%clk 00:23:14]} {[%emt 00:04:00]} 19. Rfe1
{[%clk 00:26:28]} {[%emt 00:04:23]} Bxf3 {[%clk 00:16:51]} {[%emt 00:06:52]} 20.
gxf3 {[%clk 00:25:29]} {[%emt 00:01:29]} gxf4 {[%clk 00:16:48]} {[%emt
00:00:34]} 21. Kg2 {[%clk 00:19:40]} {[%emt 00:06:19]} Bxd4 {[%clk 00:14:06]}
{[%emt 00:03:11]} 22. Qxe7 {[%clk 00:18:22]} {[%emt 00:01:48]} Qxe7 {[%clk
00:13:40]} {[%emt 00:00:56]} 23. Rxe7 {[%clk 00:18:47]} {[%emt 00:00:06]} Rae8
{[%clk 00:13:23]} {[%emt 00:00:46]} 24. Rxe8 {[%clk 00:14:08]} {[%emt
00:05:10]} Rxe8 {[%clk 00:13:47]} {[%emt 00:00:06]} 25. Rxc6 {[%clk 00:11:26]}
{[%emt 00:03:11]} Re2 {[%clk 00:13:50]} {[%emt 00:00:26]} 26. gxf4 {[%clk
00:11:46]} {[%emt 00:00:12]} Kg7 {[%clk 00:12:43]} {[%emt 00:01:36]} 27. Rd6
{[%clk 00:10:40]} {[%emt 00:01:36]} Rxf2+ {[%clk 00:13:02]} {[%emt 00:00:11]}
28. Kg3 {[%clk 00:10:09]} {[%emt 00:00:59]} Rd2 {[%clk 00:13:24]} {[%emt
00:00:10]} 29. Kg4 {[%clk 00:10:03]} {[%emt 00:00:36]} Bxb2 {[%clk 00:09:34]}
{[%emt 00:04:21]} 30. Kf5 {[%clk 00:08:38]} {[%emt 00:01:54]} Kh7 {[%clk
00:02:32]} {[%emt 00:07:32]} 31. Nc5 {[%clk 00:07:30]} {[%emt 00:01:38]} Bg7
{[%clk 00:02:27]} {[%emt 00:00:35]} 32. a4 {[%clk 00:07:06]} {[%emt 00:00:54]}
d4 {[%clk 00:01:16]} {[%emt 00:01:41]} 33. Ne6 {[%clk 00:06:58]} {[%emt
00:00:37]} Rg2 {[%clk 00:00:33]} {[%emt 00:01:14]} 34. Rd7 {[%clk 00:06:57]}
{[%emt 00:00:31]} a5 {[%clk 00:00:36]} {[%emt 00:00:27]} 35. Nxd4 {[%clk
00:06:07]} {[%emt 00:01:20]} Rd2 {[%clk 00:00:40]} {[%emt 00:00:26]} 36. Ke4
{[%clk 00:06:09]} {[%emt 00:00:27]} h5 {[%clk 00:00:37]} {[%emt 00:00:34]} 37.
f5 {[%clk 00:06:36]} {[%emt 00:00:03]} Rxd4+ {[%clk 00:00:45]} {[%emt
00:00:23]} 38. Rxd4 {[%clk 00:07:01]} {[%emt 00:00:04]} Bxd4 {[%clk 00:01:12]}
{[%emt 00:00:03]} 39. Kxd4 {[%clk 00:07:20]} {[%emt 00:00:11]} Kg7 {[%clk
00:01:13]} {[%emt 00:00:29]} 40. Ke4 {[%clk 00:05:47]} {[%emt 00:02:03]} Kf7
{[%clk 00:01:00]} {[%emt 00:00:43]} 41. Ke5 {[%clk 00:05:31]} {[%emt 00:00:45]}
h4 {[%clk 00:19:40]} {[%emt 00:11:52]} 42. Kf4 {[%clk 00:35:55]} {[%emt
00:00:05]} Kf6 {[%clk 00:20:01]} {[%emt 00:00:09]} 43. Kg4 {[%clk 00:36:19]}
{[%emt 00:00:06]} h3 {[%clk 00:20:01]} {[%emt 00:00:30]} 44. Kxh3 {[%clk
00:36:36]} {[%emt 00:00:13]} Kxf5 {[%clk 00:19:58]} {[%emt 00:00:34]} 45. Kg3
{[%clk 00:37:00]} {[%emt 00:00:05]} Kg5 {[%clk 00:20:14]} {[%emt 00:00:13]} 46.
f4+ {[%clk 00:37:24]} {[%emt 00:00:06]} Kf6 {[%clk 00:14:44]} {[%emt 00:06:00]}
47. Kf3 {[%clk 00:37:51]} {[%emt 00:00:03]} Ke6 {[%clk 00:11:31]} {[%emt
00:03:43]} 48. Ke4 {[%clk 00:38:17]} {[%emt 00:00:04]} Kf6 {[%clk 00:11:26]}
{[%emt 00:00:34]} 49. Kd5 {[%clk 00:38:11]} {[%emt 00:00:37]} Kf5 {[%clk
00:11:39]} {[%emt 00:00:17]} 50. Kc5 {[%clk 00:38:35]} {[%emt 00:00:05]} Kxf4
{[%clk 00:11:48]} {[%emt 00:00:22]} 51. Kb5 {[%clk 00:39:01]} {[%emt 00:00:04]}
Ke5 {[%clk 00:12:05]} {[%emt 00:00:13]} 52. Kxa5 {[%clk 00:39:25]} {[%emt
00:00:06]} Kd6 {[%clk 00:12:28]} {[%emt 00:00:07]} 53. Kb6 {[%clk 00:39:51]}
{[%emt 00:00:04]} Kd7 {[%clk 00:12:56]} {[%emt 00:00:03]} 54. Kb7 {[%emt
00:00:20]} 1-0